[Event "Early-Titled-Tuesday-Blitz-June-18-2024"]
[Site "Chess.com"]
[Date "2024.06.18"]
[Round "2"]
[White "KinKaiser"]
[Black "AthanasiusLefebvre"]
[Result "1-0"]
[WhiteElo "2467"]
[BlackElo "2149"]
[TimeControl "180+1"]
[EndTime "8:16:24 PDT"]
[Termination "KinKaiser won by resignation"]

1. e4 {[%clk 0:02:45.2]} 1... c5 {[%clk 0:02:59.3]} 2. Nf3 {[%clk 0:02:43.1]}
2... e6 {[%clk 0:02:59.7]} 3. d4 {[%clk 0:02:42.8]} 3... cxd4 {[%clk 0:03:00.2]}
4. Nxd4 {[%clk 0:02:43.7]} 4... a6 {[%clk 0:03:00.5]} 5. c4 {[%clk 0:02:43.5]}
5... Nc6 {[%clk 0:02:59.1]} 6. Nc3 {[%clk 0:02:41.4]} 6... Qc7 {[%clk
0:02:56.6]} 7. Qd3 {[%clk 0:02:41.3]} 7... Nf6 {[%clk 0:02:56.5]} 8. Be2 {[%clk
0:02:40.6]} 8... Ne5 {[%clk 0:02:45.6]} 9. Qg3 {[%clk 0:02:38.2]} 9... d6 {[%clk
0:02:35]} 10. b3 {[%clk 0:02:35.1]} 10... h5 {[%clk 0:02:26.4]} 11. f4 {[%clk
0:02:34.5]} 11... h4 {[%clk 0:02:17.6]} 12. Qf2 {[%clk 0:02:26.8]} 12... Neg4
{[%clk 0:02:14.7]} 13. Bxg4 {[%clk 0:02:24.7]} 13... Nxg4 {[%clk 0:02:15.2]} 14.
Qf3 {[%clk 0:02:25.5]} 14... e5 {[%clk 0:01:57.1]} 15. Nd5 {[%clk 0:02:15.5]}
15... Qc5 {[%clk 0:01:53.2]} 16. Nf5 {[%clk 0:02:11.5]} 16... Bxf5 {[%clk
0:01:18.3]} 17. exf5 {[%clk 0:02:12.4]} 17... Nf6 {[%clk 0:01:07.5]} 18. Nxf6+
{[%clk 0:02:02.1]} 18... gxf6 {[%clk 0:01:03.6]} 19. Be3 {[%clk 0:02:03]} 19...
Qb4+ {[%clk 0:00:53.2]} 20. Bd2 {[%clk 0:01:57.8]} 20... Qb6 {[%clk 0:00:48.2]}
21. O-O-O {[%clk 0:01:55.3]} 21... Rc8 {[%clk 0:00:45.1]} 22. Bc3 {[%clk
0:01:54.1]} 22... Bh6 {[%clk 0:00:40.5]} 23. Rhe1 {[%clk 0:01:50.6]} 23... Kf8
{[%clk 0:00:32.8]} 24. Bd2 {[%clk 0:01:47.1]} 24... Qd4 {[%clk 0:00:30.9]} 25.
Kb1 {[%clk 0:01:45]} 25... b5 {[%clk 0:00:20.2]} 26. fxe5 {[%clk 0:01:40]} 26...
fxe5 {[%clk 0:00:16.3]} 27. Bxh6+ {[%clk 0:01:38.6]} 1-0

[Event "Early-Titled-Tuesday-Blitz-June-18-2024"]
[Site "Chess.com"]
[Date "2024.06.18"]
[Round "2"]
[White "KogotBobra17"]
[Black "AnishOnYoutube"]
[Result "0-1"]
[WhiteElo "2665"]
[BlackElo "3059"]
[TimeControl "180+1"]
[EndTime "8:16:26 PDT"]
[Termination "AnishOnYoutube won by resignation"]

1. e4 {[%clk 0:03:00.9]} 1... c5 {[%clk 0:02:59.7]} 2. Nf3 {[%clk 0:03:00.8]}
2... d6 {[%clk 0:02:59.8]} 3. d4 {[%clk 0:03:01.3]} 3... cxd4 {[%clk 0:03:00.2]}
4. Nxd4 {[%clk 0:03:02.2]} 4... Nf6 {[%clk 0:03:00.7]} 5. Nc3 {[%clk 0:03:02.6]}
5... a6 {[%clk 0:03:01.3]} 6. f3 {[%clk 0:03:03.1]} 6... e5 {[%clk 0:03:01.6]}
7. Nb3 {[%clk 0:03:03.6]} 7... Be6 {[%clk 0:03:00.4]} 8. Be3 {[%clk 0:03:04.1]}
8... h5 {[%clk 0:03:00.4]} 9. Qd2 {[%clk 0:03:04]} 9... Nbd7 {[%clk 0:02:56.8]}
10. Nd5 {[%clk 0:03:03.3]} 10... Bxd5 {[%clk 0:02:57]} 11. exd5 {[%clk
0:03:04.2]} 11... g6 {[%clk 0:02:57.5]} 12. O-O-O {[%clk 0:02:58.8]} 12... Bg7
{[%clk 0:02:57.6]} 13. Na5 {[%clk 0:02:50.8]} 13... Qc7 {[%clk 0:02:40.3]} 14.
Qb4 {[%clk 0:02:50.6]} 14... Rc8 {[%clk 0:02:02.9]} 15. Nc4 {[%clk 0:02:43.4]}
15... Bf8 {[%clk 0:01:31.1]} 16. c3 {[%clk 0:02:31.4]} 16... b5 {[%clk
0:01:25.5]} 17. Na5 {[%clk 0:02:31.3]} 17... Bh6 {[%clk 0:01:09.2]} 18. Bxh6
{[%clk 0:02:24.2]} 18... Rxh6 {[%clk 0:01:10.1]} 19. Nc6 {[%clk 0:02:20.3]}
19... Nb6 {[%clk 0:01:09.3]} 20. Bxb5 {[%clk 0:01:28.2]} 20... axb5 {[%clk
0:01:07.4]} 21. Qxb5 {[%clk 0:01:29.1]} 21... Kf8 {[%clk 0:01:06.1]} 22. c4
{[%clk 0:01:26]} 22... Kg7 {[%clk 0:01:03.9]} 23. g4 {[%clk 0:01:25]} 23... hxg4
{[%clk 0:01:00.5]} 24. fxg4 {[%clk 0:01:25.9]} 24... Nxg4 {[%clk 0:01:01.1]} 25.
Rd2 {[%clk 0:01:14.8]} 25... Nd7 {[%clk 0:00:49.7]} 26. Rg1 {[%clk 0:01:11.7]}
26... Ngf6 {[%clk 0:00:49.6]} 27. Ne7 {[%clk 0:01:11.5]} 27... Qxc4+ {[%clk
0:00:49.8]} 28. Qxc4 {[%clk 0:01:03]} 28... Rxc4+ {[%clk 0:00:50.7]} 29. Rc2
{[%clk 0:01:02.4]} 29... Rxc2+ {[%clk 0:00:50.3]} 30. Kxc2 {[%clk 0:01:03.3]}
30... Rxh2+ {[%clk 0:00:50.7]} 0-1

[Event "Early-Titled-Tuesday-Blitz-June-18-2024"]
[Site "Chess.com"]
[Date "2024.06.18"]
[Round "2"]
[White "SilverCityIndigo"]
[Black "GoltsevDmitry2000"]
[Result "0-1"]
[WhiteElo "2416"]
[BlackElo "2706"]
[TimeControl "180+1"]
[EndTime "8:16:28 PDT"]
[Termination "GoltsevDmitry2000 won by resignation"]

1. d4 {[%clk 0:03:00.4]} 1... e6 {[%clk 0:03:00]} 2. Nf3 {[%clk 0:03:00.5]} 2...
d5 {[%clk 0:03:00.4]} 3. c4 {[%clk 0:03:00.5]} 3... dxc4 {[%clk 0:03:00.2]} 4.
e3 {[%clk 0:03:00.1]} 4... Nf6 {[%clk 0:03:00.6]} 5. Bxc4 {[%clk 0:03:00.4]}
5... c5 {[%clk 0:03:00.1]} 6. O-O {[%clk 0:03:00.6]} 6... Nc6 {[%clk 0:03:00.6]}
7. Nc3 {[%clk 0:02:59.3]} 7... a6 {[%clk 0:03:00.7]} 8. d5 {[%clk 0:02:59.2]}
8... exd5 {[%clk 0:03:00.7]} 9. Nxd5 {[%clk 0:02:59.4]} 9... b5 {[%clk
0:02:57.2]} 10. Nxf6+ {[%clk 0:02:59.3]} 10... Qxf6 {[%clk 0:02:58.1]} 11. Bd5
{[%clk 0:02:59.8]} 11... Bb7 {[%clk 0:02:58.5]} 12. e4 {[%clk 0:02:59.8]} 12...
h6 {[%clk 0:02:57.1]} 13. e5 {[%clk 0:02:57.1]} 13... Qd8 {[%clk 0:02:56.6]} 14.
Qb3 {[%clk 0:02:20.3]} 14... Qc7 {[%clk 0:02:41.2]} 15. e6 {[%clk 0:01:53.7]}
15... O-O-O {[%clk 0:02:39.5]} 16. exf7 {[%clk 0:00:42.8]} 16... Rxd5 {[%clk
0:02:35.5]} 17. Qxd5 {[%clk 0:00:43.7]} 17... Nd4 {[%clk 0:02:35.4]} 18. Qh5
{[%clk 0:00:28.3]} 18... Bxf3 {[%clk 0:02:24.1]} 19. gxf3 {[%clk 0:00:28.7]}
19... Qc6 {[%clk 0:02:24.6]} 20. Qg4+ {[%clk 0:00:19.4]} 20... Kb7 {[%clk
0:02:23.8]} 21. Be3 {[%clk 0:00:14.7]} 21... Nxf3+ {[%clk 0:02:22.7]} 22. Kh1
{[%clk 0:00:14.7]} 22... Nd2+ {[%clk 0:02:11.8]} 23. f3 {[%clk 0:00:14.6]} 23...
Nxf1 {[%clk 0:02:11.8]} 24. Rxf1 {[%clk 0:00:15.1]} 24... g5 {[%clk 0:01:59.7]}
25. Rd1 {[%clk 0:00:14.6]} 25... Bd6 {[%clk 0:01:59.2]} 26. Qe6 {[%clk 0:00:09]}
26... Qxf3+ {[%clk 0:01:57.2]} 27. Kg1 {[%clk 0:00:09.2]} 27... Qxd1+ {[%clk
0:01:57.9]} 28. Kf2 {[%clk 0:00:09.5]} 28... Qc2+ {[%clk 0:01:56]} 29. Kf1
{[%clk 0:00:08.5]} 29... Qd3+ {[%clk 0:01:54]} 30. Kf2 {[%clk 0:00:08.2]} 30...
Kc7 {[%clk 0:01:49.8]} 31. Qf6 {[%clk 0:00:04.2]} 31... Rf8 {[%clk 0:01:49]} 0-1

[Event "Early-Titled-Tuesday-Blitz-June-18-2024"]
[Site "Chess.com"]
[Date "2024.06.18"]
[Round "2"]
[White "dropstoneDP"]
[Black "viktorskliarov"]
[Result "1-0"]
[WhiteElo "2976"]
[BlackElo "2647"]
[TimeControl "180+1"]
[EndTime "8:16:34 PDT"]
[Termination "dropstoneDP won by resignation"]

1. e4 {[%clk 0:02:46.7]} 1... c5 {[%clk 0:02:59.1]} 2. Nf3 {[%clk 0:02:46.3]}
2... Nc6 {[%clk 0:02:59.5]} 3. Nc3 {[%clk 0:02:45.6]} 3... Nf6 {[%clk
0:02:59.1]} 4. Bb5 {[%clk 0:02:44.8]} 4... Nd4 {[%clk 0:02:58.2]} 5. e5 {[%clk
0:02:41.4]} 5... Nxb5 {[%clk 0:02:58.4]} 6. Nxb5 {[%clk 0:02:42.2]} 6... Nd5
{[%clk 0:02:58.7]} 7. Ng5 {[%clk 0:02:42.2]} 7... f6 {[%clk 0:02:58.2]} 8. Qf3
{[%clk 0:02:37.6]} 8... Nb4 {[%clk 0:02:48.7]} 9. exf6 {[%clk 0:02:29.7]} 9...
exf6 {[%clk 0:02:48]} 10. O-O {[%clk 0:02:28.6]} 10... Be7 {[%clk 0:02:22.6]}
11. Qh5+ {[%clk 0:02:23]} 11... g6 {[%clk 0:02:18.8]} 12. Qh6 {[%clk 0:02:23.3]}
12... fxg5 {[%clk 0:01:40.5]} 13. Qg7 {[%clk 0:02:21.7]} 13... Rf8 {[%clk
0:01:40.6]} 14. d4 {[%clk 0:02:21]} 14... a6 {[%clk 0:01:11.3]} 15. Bxg5 {[%clk
0:02:09.4]} 15... axb5 {[%clk 0:00:47.7]} 16. Bxe7 {[%clk 0:01:59.5]} 16... Qxe7
{[%clk 0:00:47.7]} 17. Rae1 {[%clk 0:02:00.1]} 17... Nd5 {[%clk 0:00:41.1]} 18.
Rxe7+ {[%clk 0:01:54.8]} 18... Nxe7 {[%clk 0:00:41.3]} 19. Re1 {[%clk
0:01:55.4]} 19... Rf7 {[%clk 0:00:39.4]} 20. Qg8+ {[%clk 0:01:55]} 20... Rf8
{[%clk 0:00:39.5]} 21. Qxh7 {[%clk 0:01:55.6]} 21... Rf7 {[%clk 0:00:38.8]} 22.
Qg8+ {[%clk 0:01:55.9]} 22... Rf8 {[%clk 0:00:38.6]} 23. Qxg6+ {[%clk
0:01:56.5]} 23... Kd8 {[%clk 0:00:37]} 24. Qb6+ {[%clk 0:01:56.6]} 24... Ke8
{[%clk 0:00:35.6]} 25. d5 {[%clk 0:01:56]} 25... d6 {[%clk 0:00:30.7]} 26. Qxd6
{[%clk 0:01:54.7]} 26... Rf7 {[%clk 0:00:30.7]} 27. Qxc5 {[%clk 0:01:52.5]}
27... Kd7 {[%clk 0:00:24.9]} 28. Qxb5+ {[%clk 0:01:46]} 28... Kd6 {[%clk
0:00:24.1]} 29. Qb6+ {[%clk 0:01:41.5]} 29... Kxd5 {[%clk 0:00:21.9]} 30. Qd8+
{[%clk 0:01:35]} 1-0

[Event "Early-Titled-Tuesday-Blitz-June-18-2024"]
[Site "Chess.com"]
[Date "2024.06.18"]
[Round "2"]
[White "Grebnev_A"]
[Black "secrethawk1"]
[Result "1-0"]
[WhiteElo "2707"]
[BlackElo "2418"]
[TimeControl "180+1"]
[EndTime "8:16:40 PDT"]
[Termination "Grebnev_A won on time"]

1. Nf3 {[%clk 0:03:00.9]} 1... Nf6 {[%clk 0:02:57.6]} 2. c4 {[%clk 0:03:00.8]}
2... c6 {[%clk 0:02:54.7]} 3. Nc3 {[%clk 0:03:00.2]} 3... d5 {[%clk 0:02:55.6]}
4. e3 {[%clk 0:03:00.3]} 4... e6 {[%clk 0:02:55.2]} 5. b3 {[%clk 0:03:00.3]}
5... Nbd7 {[%clk 0:02:54.9]} 6. Bb2 {[%clk 0:03:00.5]} 6... Be7 {[%clk
0:02:55.6]} 7. d4 {[%clk 0:03:00.2]} 7... O-O {[%clk 0:02:56.2]} 8. Bd3 {[%clk
0:03:00.7]} 8... b6 {[%clk 0:02:51.5]} 9. O-O {[%clk 0:03:00.7]} 9... Bb7 {[%clk
0:02:52.1]} 10. Qc2 {[%clk 0:03:00]} 10... Qc7 {[%clk 0:02:51.3]} 11. Rfe1
{[%clk 0:02:56.4]} 11... Rad8 {[%clk 0:02:48.8]} 12. Rad1 {[%clk 0:02:55.8]}
12... Rfe8 {[%clk 0:02:48.2]} 13. h3 {[%clk 0:02:55.9]} 13... Qb8 {[%clk
0:02:44.4]} 14. Qe2 {[%clk 0:02:50.7]} 14... c5 {[%clk 0:02:42]} 15. cxd5 {[%clk
0:02:50.3]} 15... Nxd5 {[%clk 0:02:41]} 16. Nxd5 {[%clk 0:02:48.1]} 16... Bxd5
{[%clk 0:02:41.9]} 17. Bb5 {[%clk 0:02:48.2]} 17... Qc7 {[%clk 0:02:27.9]} 18.
e4 {[%clk 0:02:45.7]} 18... Bc6 {[%clk 0:02:04.6]} 19. Bxc6 {[%clk 0:02:40.1]}
19... Qxc6 {[%clk 0:02:05.5]} 20. d5 {[%clk 0:02:41]} 20... exd5 {[%clk
0:01:56.5]} 21. exd5 {[%clk 0:02:41.9]} 21... Qd6 {[%clk 0:01:55.5]} 22. Qa6
{[%clk 0:02:39.4]} 22... Qc7 {[%clk 0:01:25.1]} 23. d6 {[%clk 0:02:18.2]} 23...
Bxd6 {[%clk 0:01:10.3]} 24. Rxe8+ {[%clk 0:02:19.1]} 24... Rxe8 {[%clk
0:01:09.7]} 25. Qd3 {[%clk 0:02:19]} 25... Re6 {[%clk 0:00:35]} 26. Ng5 {[%clk
0:02:17.2]} 26... Rg6 {[%clk 0:00:33.6]} 27. Ne4 {[%clk 0:02:10]} 27... Bh2+
{[%clk 0:00:19.9]} 28. Kh1 {[%clk 0:02:08.6]} 28... Nf8 {[%clk 0:00:14.8]} 29.
g3 {[%clk 0:02:08.1]} 29... Bxg3 {[%clk 0:00:10.6]} 30. Nxg3 {[%clk 0:02:09]}
30... Qc6+ {[%clk 0:00:09.2]} 31. Kh2 {[%clk 0:02:08.1]} 31... h5 {[%clk
0:00:06.7]} 32. Qd5 {[%clk 0:02:06.1]} 32... Qe8 {[%clk 0:00:02.7]} 33. Qxh5
{[%clk 0:02:03.4]} 33... Qe6 {[%clk 0:00:02.8]} 34. Rd8 {[%clk 0:02:02.7]} 34...
Qe7 {[%clk 0:00:01.2]} 35. Qd5 {[%clk 0:02:02.1]} 1-0

[Event "Early-Titled-Tuesday-Blitz-June-18-2024"]
[Site "Chess.com"]
[Date "2024.06.18"]
[Round "2"]
[White "komogro"]
[Black "JJDAREK"]
[Result "1-0"]
[WhiteElo "2539"]
[BlackElo "2328"]
[TimeControl "180+1"]
[EndTime "8:16:45 PDT"]
[Termination "komogro won on time"]

1. Nf3 {[%clk 0:03:00]} 1... g6 {[%clk 0:02:59.5]} 2. g3 {[%clk 0:02:58.9]} 2...
Bg7 {[%clk 0:02:59.4]} 3. Bg2 {[%clk 0:02:59.8]} 3... Nf6 {[%clk 0:02:59.5]} 4.
d3 {[%clk 0:03:00.5]} 4... O-O {[%clk 0:02:59.4]} 5. Nc3 {[%clk 0:03:01.4]} 5...
c5 {[%clk 0:02:57.9]} 6. Bd2 {[%clk 0:03:02.1]} 6... Nc6 {[%clk 0:02:57.6]} 7.
Qc1 {[%clk 0:03:02.8]} 7... e5 {[%clk 0:02:56]} 8. Bh6 {[%clk 0:03:03.1]} 8...
d5 {[%clk 0:02:56.1]} 9. Bxg7 {[%clk 0:02:59.9]} 9... Kxg7 {[%clk 0:02:57]} 10.
h4 {[%clk 0:03:00]} 10... h6 {[%clk 0:02:47.6]} 11. O-O {[%clk 0:02:47.6]} 11...
Bg4 {[%clk 0:02:40.2]} 12. Re1 {[%clk 0:02:44.8]} 12... d4 {[%clk 0:02:39.1]}
13. Nb1 {[%clk 0:02:41.1]} 13... e4 {[%clk 0:02:31.8]} 14. dxe4 {[%clk
0:02:40.9]} 14... Nxe4 {[%clk 0:02:31.6]} 15. c3 {[%clk 0:02:39.1]} 15... Re8
{[%clk 0:02:23.1]} 16. cxd4 {[%clk 0:02:37.5]} 16... cxd4 {[%clk 0:02:21.1]} 17.
Nbd2 {[%clk 0:02:37.5]} 17... Rc8 {[%clk 0:02:02.9]} 18. Nxe4 {[%clk 0:02:34.3]}
18... Rxe4 {[%clk 0:02:03.8]} 19. Qd2 {[%clk 0:02:34.8]} 19... Qe7 {[%clk
0:01:42]} 20. Rac1 {[%clk 0:01:47.8]} 20... Re8 {[%clk 0:01:34.8]} 21. Rxc6
{[%clk 0:01:47.6]} 21... bxc6 {[%clk 0:01:33.6]} 22. Nxd4 {[%clk 0:01:47.7]}
22... c5 {[%clk 0:00:26.8]} 23. Bxe4 {[%clk 0:01:47.3]} 23... Qxe4 {[%clk
0:00:25.4]} 24. Nc2 {[%clk 0:01:46.3]} 24... Bxe2 {[%clk 0:00:19.8]} 25. Qc3+
{[%clk 0:01:41.5]} 25... Kg8 {[%clk 0:00:17]} 26. Qxc5 {[%clk 0:01:36.8]} 26...
h5 {[%clk 0:00:12]} 27. Nd4 {[%clk 0:01:35.8]} 1-0

[Event "Early-Titled-Tuesday-Blitz-June-18-2024"]
[Site "Chess.com"]
[Date "2024.06.18"]
[Round "2"]
[White "Arteler"]
[Black "pinelone"]
[Result "0-1"]
[WhiteElo "2209"]
[BlackElo "2484"]
[TimeControl "180+1"]
[EndTime "8:16:49 PDT"]
[Termination "pinelone won on time"]

1. e4 {[%clk 0:03:00.9]} 1... c6 {[%clk 0:02:59.8]} 2. Nf3 {[%clk 0:03:00.7]}
2... d5 {[%clk 0:03:00.1]} 3. Nc3 {[%clk 0:03:01.3]} 3... dxe4 {[%clk
0:03:00.2]} 4. Nxe4 {[%clk 0:03:02.2]} 4... Nf6 {[%clk 0:02:59.8]} 5. Neg5
{[%clk 0:02:58.3]} 5... h6 {[%clk 0:02:59.4]} 6. Nxf7 {[%clk 0:02:42.8]} 6...
Kxf7 {[%clk 0:02:59.3]} 7. Bc4+ {[%clk 0:02:28.2]} 7... e6 {[%clk 0:02:55.3]} 8.
d4 {[%clk 0:02:28.2]} 8... Bd6 {[%clk 0:02:53.7]} 9. O-O {[%clk 0:02:28.4]} 9...
Rf8 {[%clk 0:02:52.2]} 10. Re1 {[%clk 0:02:28.7]} 10... Kg8 {[%clk 0:02:44.7]}
11. Bd3 {[%clk 0:02:22.8]} 11... Na6 {[%clk 0:02:28.3]} 12. Ne5 {[%clk
0:02:20.6]} 12... Nb4 {[%clk 0:02:21.5]} 13. Ng6 {[%clk 0:01:15.6]} 13... Nxd3
{[%clk 0:02:15.7]} 14. Qxd3 {[%clk 0:01:07.9]} 14... Rf7 {[%clk 0:02:14.7]} 15.
Nh4 {[%clk 0:00:24.6]} 15... Bd7 {[%clk 0:01:39]} 16. Qg6 {[%clk 0:00:21.6]}
16... Nd5 {[%clk 0:01:26.8]} 17. Nf3 {[%clk 0:00:15.6]} 17... Qf6 {[%clk
0:01:22.2]} 18. Qd3 {[%clk 0:00:12.6]} 18... Raf8 {[%clk 0:01:21.2]} 19. c4
{[%clk 0:00:10.8]} 19... Nf4 {[%clk 0:01:20.7]} 20. Qe4 {[%clk 0:00:11.1]} 20...
Nxg2 {[%clk 0:01:16.1]} 21. Kxg2 {[%clk 0:00:06.8]} 21... Qxf3+ {[%clk
0:01:15.6]} 22. Qxf3 {[%clk 0:00:07]} 22... Rxf3 {[%clk 0:01:15.6]} 0-1

[Event "Early-Titled-Tuesday-Blitz-June-18-2024"]
[Site "Chess.com"]
[Date "2024.06.18"]
[Round "2"]
[White "Evan_Attaker"]
[Black "unbreakablepawn35"]
[Result "1-0"]
[WhiteElo "2692"]
[BlackElo "2395"]
[TimeControl "180+1"]
[EndTime "8:16:50 PDT"]
[Termination "Evan_Attaker won by resignation"]

1. a3 {[%clk 0:03:00.9]} 1... e5 {[%clk 0:02:58]} 2. c4 {[%clk 0:03:01.1]} 2...
Nf6 {[%clk 0:02:57.3]} 3. d3 {[%clk 0:03:00.1]} 3... d5 {[%clk 0:02:57.2]} 4.
cxd5 {[%clk 0:02:58.9]} 4... Nxd5 {[%clk 0:02:58.1]} 5. Nf3 {[%clk 0:02:58.3]}
5... Nc6 {[%clk 0:02:54.7]} 6. g3 {[%clk 0:02:54.2]} 6... g6 {[%clk 0:02:54.9]}
7. Bg2 {[%clk 0:02:54]} 7... Bg7 {[%clk 0:02:55.3]} 8. O-O {[%clk 0:02:54]} 8...
O-O {[%clk 0:02:54.2]} 9. Nc3 {[%clk 0:02:54.6]} 9... Nde7 {[%clk 0:02:49.3]}
10. Bg5 {[%clk 0:02:50.5]} 10... h6 {[%clk 0:02:48.5]} 11. Bd2 {[%clk
0:02:50.9]} 11... Be6 {[%clk 0:02:44.9]} 12. b4 {[%clk 0:02:48.8]} 12... f5
{[%clk 0:02:37.1]} 13. Rc1 {[%clk 0:02:47.7]} 13... a6 {[%clk 0:02:34.9]} 14.
Na4 {[%clk 0:02:47.5]} 14... Rb8 {[%clk 0:02:27.8]} 15. Nc5 {[%clk 0:02:45.5]}
15... Bf7 {[%clk 0:02:28.4]} 16. Bc3 {[%clk 0:02:41.6]} 16... Nd5 {[%clk
0:02:26.2]} 17. Ba1 {[%clk 0:02:37.8]} 17... Qd6 {[%clk 0:02:17.2]} 18. Nd2
{[%clk 0:02:20.8]} 18... Nd8 {[%clk 0:01:28.9]} 19. Nc4 {[%clk 0:02:18.4]} 19...
Qe7 {[%clk 0:01:29.5]} 20. e4 {[%clk 0:02:09.4]} 20... Nb6 {[%clk 0:01:21.4]}
21. exf5 {[%clk 0:02:07.4]} 21... gxf5 {[%clk 0:01:22.3]} 22. Ne3 {[%clk
0:02:06.9]} 22... Qf6 {[%clk 0:01:15.9]} 23. f4 {[%clk 0:01:57.1]} 23... Qg6
{[%clk 0:00:58.6]} 24. Bxe5 {[%clk 0:01:50.8]} 24... Bxe5 {[%clk 0:00:57.8]} 25.
fxe5 {[%clk 0:01:51.7]} 25... Be6 {[%clk 0:00:57.5]} 26. d4 {[%clk 0:01:45.5]}
26... c6 {[%clk 0:00:55]} 27. d5 {[%clk 0:01:32]} 27... cxd5 {[%clk 0:00:28.5]}
28. Nxd5 {[%clk 0:01:20.9]} 28... Nxd5 {[%clk 0:00:26.1]} 29. Bxd5 {[%clk
0:01:20.2]} 29... Kg7 {[%clk 0:00:18.8]} 30. Bxe6 {[%clk 0:01:18.6]} 30... Nxe6
{[%clk 0:00:19.7]} 31. Qd7+ {[%clk 0:01:18.4]} 31... Rf7 {[%clk 0:00:18.7]} 32.
Qxe6 {[%clk 0:01:17.2]} 1-0

[Event "Early-Titled-Tuesday-Blitz-June-18-2024"]
[Site "Chess.com"]
[Date "2024.06.18"]
[Round "2"]
[White "ATM622"]
[Black "ab-lsv"]
[Result "1-0"]
[WhiteElo "2547"]
[BlackElo "2358"]
[TimeControl "180+1"]
[EndTime "8:16:50 PDT"]
[Termination "ATM622 won by checkmate"]

1. d4 {[%clk 0:03:00.9]} 1... d5 {[%clk 0:02:59.7]} 2. c4 {[%clk 0:03:00.2]}
2... c6 {[%clk 0:03:00.2]} 3. Nf3 {[%clk 0:02:59.6]} 3... Nf6 {[%clk 0:03:01]}
4. Nbd2 {[%clk 0:02:58.5]} 4... Bf5 {[%clk 0:03:00.4]} 5. Nh4 {[%clk 0:02:58.4]}
5... Be4 {[%clk 0:03:00.7]} 6. e3 {[%clk 0:02:58.4]} 6... e6 {[%clk 0:02:59.1]}
7. Be2 {[%clk 0:02:58.5]} 7... Bd6 {[%clk 0:02:52.5]} 8. O-O {[%clk 0:02:58]}
8... Nbd7 {[%clk 0:02:47]} 9. b3 {[%clk 0:02:54.2]} 9... Qc7 {[%clk 0:02:31.1]}
10. h3 {[%clk 0:02:45.5]} 10... g5 {[%clk 0:02:23.9]} 11. Nhf3 {[%clk
0:02:45.1]} 11... g4 {[%clk 0:02:23.9]} 12. hxg4 {[%clk 0:02:43.2]} 12... Nxg4
{[%clk 0:02:23.3]} 13. c5 {[%clk 0:02:42.9]} 13... Be7 {[%clk 0:02:21.8]} 14.
Bb2 {[%clk 0:02:29.2]} 14... Rg8 {[%clk 0:02:17.2]} 15. Re1 {[%clk 0:02:19.6]}
15... f5 {[%clk 0:02:02.3]} 16. Nf1 {[%clk 0:02:16.3]} 16... O-O-O {[%clk
0:01:51.8]} 17. b4 {[%clk 0:02:13.4]} 17... f4 {[%clk 0:01:46.1]} 18. exf4
{[%clk 0:02:07.3]} 18... Qxf4 {[%clk 0:01:45.3]} 19. Bc1 {[%clk 0:01:55.9]}
19... Qf7 {[%clk 0:01:41.9]} 20. Qa4 {[%clk 0:01:44.8]} 20... a6 {[%clk
0:00:38.7]} 21. Ng3 {[%clk 0:01:21.1]} 21... Rdf8 {[%clk 0:00:29]} 22. Bxa6
{[%clk 0:01:07.7]} 22... Bxf3 {[%clk 0:00:22.1]} 23. Qxc6+ {[%clk 0:01:06.9]}
23... Kd8 {[%clk 0:00:21.7]} 24. Bxb7 {[%clk 0:01:03.7]} 24... Nb8 {[%clk
0:00:20]} 25. Qc8# {[%clk 0:01:03.1]} 1-0

[Event "Early-Titled-Tuesday-Blitz-June-18-2024"]
[Site "Chess.com"]
[Date "2024.06.18"]
[Round "2"]
[White "Jospem"]
[Black "sanbruh"]
[Result "1-0"]
[WhiteElo "3051"]
[BlackElo "2436"]
[TimeControl "180+1"]
[EndTime "8:16:51 PDT"]
[Termination "Jospem won by resignation"]

1. e4 {[%clk 0:03:00.9]} 1... c5 {[%clk 0:02:59.6]} 2. Nf3 {[%clk 0:03:00.9]}
2... d6 {[%clk 0:02:59.7]} 3. d4 {[%clk 0:03:00.6]} 3... cxd4 {[%clk 0:02:59.9]}
4. Nxd4 {[%clk 0:03:01.5]} 4... Nf6 {[%clk 0:02:59.6]} 5. Nc3 {[%clk 0:03:01.9]}
5... a6 {[%clk 0:02:59.8]} 6. f3 {[%clk 0:03:00.6]} 6... e5 {[%clk 0:02:59.6]}
7. Nb3 {[%clk 0:03:01]} 7... Be7 {[%clk 0:02:59.3]} 8. Be3 {[%clk 0:03:01.6]}
8... Be6 {[%clk 0:02:59.6]} 9. Qd2 {[%clk 0:03:02.1]} 9... Nbd7 {[%clk
0:02:59.8]} 10. O-O-O {[%clk 0:03:02.6]} 10... O-O {[%clk 0:03:00.5]} 11. Kb1
{[%clk 0:03:03]} 11... b5 {[%clk 0:03:00.8]} 12. g4 {[%clk 0:03:03.4]} 12... Nb6
{[%clk 0:03:00.7]} 13. g5 {[%clk 0:03:03.8]} 13... Nh5 {[%clk 0:03:00.1]} 14.
Rg1 {[%clk 0:03:02.4]} 14... Nc4 {[%clk 0:02:58.5]} 15. Bxc4 {[%clk 0:03:01.6]}
15... bxc4 {[%clk 0:02:59.4]} 16. Nc1 {[%clk 0:03:02]} 16... Rb8 {[%clk
0:02:56.7]} 17. N1e2 {[%clk 0:03:02.3]} 17... Kh8 {[%clk 0:02:52]} 18. Ka1
{[%clk 0:03:02.2]} 18... Qc7 {[%clk 0:02:50.4]} 19. Ng3 {[%clk 0:03:00.5]} 19...
Nf4 {[%clk 0:02:43.6]} 20. Bxf4 {[%clk 0:02:59.4]} 20... exf4 {[%clk 0:02:44.5]}
21. Nge2 {[%clk 0:02:59.7]} 21... Qb7 {[%clk 0:02:43.2]} 22. Rb1 {[%clk
0:02:59.4]} 22... d5 {[%clk 0:02:13.4]} 23. exd5 {[%clk 0:02:56.6]} 23... Rfd8
{[%clk 0:02:08.8]} 24. Nxf4 {[%clk 0:02:56.6]} 24... Bb4 {[%clk 0:01:51.9]} 25.
g6 {[%clk 0:02:54.3]} 25... Bxc3 {[%clk 0:01:28.3]} 26. bxc3 {[%clk 0:02:51.5]}
26... Qc7 {[%clk 0:01:21.3]} 27. Qd4 {[%clk 0:02:48]} 27... Rxb1+ {[%clk
0:01:15.7]} 28. Kxb1 {[%clk 0:02:48.9]} 28... Rb8+ {[%clk 0:01:11.4]} 29. Kc1
{[%clk 0:02:46.8]} 29... Bf5 {[%clk 0:00:46.4]} 30. gxf7 {[%clk 0:02:41.1]}
30... Qxf7 {[%clk 0:00:47.3]} 31. d6 {[%clk 0:02:41.2]} 31... Bxc2 {[%clk
0:00:30.1]} 32. Kxc2 {[%clk 0:02:35.4]} 32... Qf5+ {[%clk 0:00:30.5]} 33. Qe4
{[%clk 0:02:35.9]} 33... Qa5 {[%clk 0:00:29.5]} 34. Kd2 {[%clk 0:02:17.4]} 34...
Rb2+ {[%clk 0:00:22.9]} 35. Kd1 {[%clk 0:02:17.6]} 35... Qa4+ {[%clk 0:00:20]}
36. Kc1 {[%clk 0:02:17.1]} 36... Rb8 {[%clk 0:00:17.4]} 37. d7 {[%clk
0:02:11.8]} 37... Qa3+ {[%clk 0:00:14.7]} 38. Kd1 {[%clk 0:02:11.5]} 38... Qa4+
{[%clk 0:00:14.3]} 39. Ke1 {[%clk 0:02:11]} 39... Qxd7 {[%clk 0:00:13.5]} 40.
Ne2 {[%clk 0:02:06.4]} 40... Qa7 {[%clk 0:00:09.3]} 41. Qd4 {[%clk 0:02:06.3]}
41... Rb1+ {[%clk 0:00:08.4]} 42. Kf2 {[%clk 0:02:06.4]} 42... Qxd4+ {[%clk
0:00:08.2]} 43. cxd4 {[%clk 0:02:05.7]} 43... Rb2 {[%clk 0:00:06.5]} 44. Rc1
{[%clk 0:02:06.6]} 44... Rxa2 {[%clk 0:00:05.7]} 45. Rxc4 {[%clk 0:02:06.9]}
45... h6 {[%clk 0:00:06.6]} 46. d5 {[%clk 0:02:07.1]} 46... Rd2 {[%clk
0:00:06.9]} 47. Rd4 {[%clk 0:02:07.9]} 47... Ra2 {[%clk 0:00:07.2]} 48. d6
{[%clk 0:02:08.3]} 1-0